{"text_format":"1","workbook":"xlsx","n_sheets":2,"sheets":["TirEquipe","Classement par moyenne (2)"],"not_rendered":{"charts":0,"images":1,"macros":1,"external_links":0,"defined_names":2,"comments":0,"pivot_tables":0},"unopened":[],"bounds":{"document_bytes":16777216,"sheet_cells":100000,"rows_first":2000,"rows_last":500,"rows_between":2000,"halvings":0,"cell_chars":16384,"cell_head_chars":4096},"cells_cut":0,"cells_raw":0,"read":"whole","date_system":"1900"}

{"sheet":"TirEquipe","index":0,"n_rows":17,"n_cols":18,"rows_kept":17,"cut":false,"hidden":false,"merged":[[0,1,0,9]]}
[null,"Tir d'équipes 2017-2018"]
[null,"Nom / Prénom","Tour 1","Tour 2","Tour 3","Tour 4","Tour 5","Tour 6","Tour 7","Moyenne",null,"Tour 1","Tour 2","Tour 3","Tour 4","Tour 5","Tour 6","Tour 7"]
[1,"Steiner Alicia",188,193,196,null,null,null,null,{"$f":"AVERAGE(C3:I3)","v":192.33333333333334},null,{"$f":"numcoulcel(C3)","v":43},{"$f":"numcoulcel(D3)","v":43},{"$f":"numcoulcel(E3)","v":43},{"$f":"numcoulcel(F3)","v":4142},{"$f":"numcoulcel(G3)","v":4142},{"$f":"numcoulcel(H3)","v":4142},{"$f":"numcoulcel(I3)","v":4142}]
[2,"Légeret Alain",182,189,195,null,null,null,null,188.66666666666666,null,{"$f":"numcoulcel(C4)","v":43},43,43,4142,4142,4142,4142]
[3,"Légeret Denis",188,186,184,null,null,null,null,186,null,43,43,43,4142,4142,4142,4142]
[4,"Perret Nicolas",183,185,189,null,null,null,null,185.66666666666666,null,43,43,43,4142,4142,4142,4142]
[5,"Kiener Ronny",185,180,185,null,null,null,null,183.33333333333334,null,43,43,43,4142,4142,4142,4142]
[6,"Vittoz Florian",182,182,180,null,null,null,null,181.33333333333334,null,43,43,43,4142,4142,4142,4142]
[7,"Légeret Christian",179,176,180,null,null,null,null,178.33333333333334,null,43,43,43,4142,4142,4142,4142]
[8,"Steiner René",{"$f":"200-9-7-4-10","v":170},170,171,null,null,null,null,170.33333333333334,null,4142,4142,4142,4142,4142,4142,4142]
[9,"Borboen Magaly",{"$f":"200-11-11-15-13","v":150},173,176,null,null,null,null,166.33333333333334,null,4142,4142,4142,4142,4142,4142,4142]
[10,"Tétaz Véronique",184,174,0,null,null,null,null,119.33333333333333,null,43,43,4142,4142,4142,4142,4142]
[11,"Furer Yves",0,0,168,null,null,null,null,56,null,4142,4142,43,4142,4142,4142,4142]
[12,"Vulliamy Laurent",0,0,0,null,null,null,null,0,null,4142,4142,4142,4142,4142,4142,4142]
[13,"Philipona Nicolas",0,0,0,null,null,null,null,0,null,4142,4142,4142,4142,4142,4142,4142]
[null,"Equipe I",{"$f":"+SUMIF(L1:L15,43,C1:C15)","v":1471},{"$f":"+SUMIF(M1:M15,43,D1:D15)","v":1465},{"$f":"+SUMIF(N1:N15,43,E1:E15)","v":1477},null,null,null,null,{"$f":"AVERAGE(C16:I16)","v":1471}]
[null,null,1471,1462]

{"sheet":"Classement par moyenne (2)","index":1,"n_rows":25,"n_cols":10,"rows_kept":25,"cut":false,"hidden":true,"merged":[[0,1,0,9]]}
[null,"Tir d'équipes 2010"]
[null,"Nom / Prénom","Tour 1","Tour 2","Tour 3","Tour 4","Tour 5","Tour 6","Tour 7","Moyenne"]
[1,"Kiener Ronny",{"$f":"IF(+SUMIF(#REF!,'Classement par moyenne (2)'!$B$3,#REF!)=0,\"-\",+SUMIF(#REF!,'Classement par moyenne (2)'!$B$3,#REF!))","v":{"$error":"#REF!"}},{"$f":"IF(+SUMIF(#REF!,'Classement par moyenne (2)'!$B$3,#REF!)=0,\"-\",+SUMIF(#REF!,'Classement par moyenne (2)'!$B$3,#REF!))","v":{"$error":"#REF!"}},{"$f":"IF(+SUMIF(#REF!,'Classement par moyenne (2)'!$B$3,#REF!)=0,\"-\",+SUMIF(#REF!,'Classement par moyenne (2)'!$B$3,#REF!))","v":{"$error":"#REF!"}},{"$f":"IF(+SUMIF(#REF!,'Classement par moyenne (2)'!$B$3,#REF!)=0,\"-\",+SUMIF(#REF!,'Classement par moyenne (2)'!$B$3,#REF!))","v":{"$error":"#REF!"}},{"$f":"IF(+SUMIF(#REF!,'Classement par moyenne (2)'!$B$3,#REF!)=0,\"-\",+SUMIF(#REF!,'Classement par moyenne (2)'!$B$3,#REF!))","v":{"$error":"#REF!"}},{"$f":"IF(+SUMIF(#REF!,'Classement par moyenne (2)'!$B$3,#REF!)=0,\"-\",+SUMIF(#REF!,'Classement par moyenne (2)'!$B$3,#REF!))","v":{"$error":"#REF!"}},{"$f":"IF(+SUMIF(#REF!,'Classement par moyenne (2)'!$B$3,#REF!)=0,\"-\",+SUMIF(#REF!,'Classement par moyenne (2)'!$B$3,#REF!))","v":{"$error":"#REF!"}},{"$f":"+AVERAGE(C3:I3)","v":{"$error":"#REF!"}}]
[2,"Légeret Alain",{"$f":"IF(+SUMIF(#REF!,'Classement par moyenne (2)'!$B$4,#REF!)=0,\"-\",+SUMIF(#REF!,'Classement par moyenne (2)'!$B$4,#REF!))","v":{"$error":"#REF!"}},{"$f":"IF(+SUMIF(#REF!,'Classement par moyenne (2)'!$B$4,#REF!)=0,\"-\",+SUMIF(#REF!,'Classement par moyenne (2)'!$B$4,#REF!))","v":{"$error":"#REF!"}},{"$f":"IF(+SUMIF(#REF!,'Classement par moyenne (2)'!$B$4,#REF!)=0,\"-\",+SUMIF(#REF!,'Classement par moyenne (2)'!$B$4,#REF!))","v":{"$error":"#REF!"}},{"$f":"IF(+SUMIF(#REF!,'Classement par moyenne (2)'!$B$4,#REF!)=0,\"-\",+SUMIF(#REF!,'Classement par moyenne (2)'!$B$4,#REF!))","v":{"$error":"#REF!"}},{"$f":"IF(+SUMIF(#REF!,'Classement par moyenne (2)'!$B$4,#REF!)=0,\"-\",+SUMIF(#REF!,'Classement par moyenne (2)'!$B$4,#REF!))","v":{"$error":"#REF!"}},{"$f":"IF(+SUMIF(#REF!,'Classement par moyenne (2)'!$B$4,#REF!)=0,\"-\",+SUMIF(#REF!,'Classement par moyenne (2)'!$B$4,#REF!))","v":{"$error":"#REF!"}},{"$f":"IF(+SUMIF(#REF!,'Classement par moyenne (2)'!$B$4,#REF!)=0,\"-\",+SUMIF(#REF!,'Classement par moyenne (2)'!$B$4,#REF!))","v":{"$error":"#REF!"}},{"$error":"#REF!"}]
[3,"Vulliamy Laurent",{"$f":"IF(+SUMIF(#REF!,'Classement par moyenne (2)'!$B$5,#REF!)=0,\"-\",+SUMIF(#REF!,'Classement par moyenne (2)'!$B$5,#REF!))","v":{"$error":"#REF!"}},{"$f":"IF(+SUMIF(#REF!,'Classement par moyenne (2)'!$B$5,#REF!)=0,\"-\",+SUMIF(#REF!,'Classement par moyenne (2)'!$B$5,#REF!))","v":{"$error":"#REF!"}},{"$f":"IF(+SUMIF(#REF!,'Classement par moyenne (2)'!$B$5,#REF!)=0,\"-\",+SUMIF(#REF!,'Classement par moyenne (2)'!$B$5,#REF!))","v":{"$error":"#REF!"}},{"$f":"IF(+SUMIF(#REF!,'Classement par moyenne (2)'!$B$5,#REF!)=0,\"-\",+SUMIF(#REF!,'Classement par moyenne (2)'!$B$5,#REF!))","v":{"$error":"#REF!"}},{"$f":"IF(+SUMIF(#REF!,'Classement par moyenne (2)'!$B$5,#REF!)=0,\"-\",+SUMIF(#REF!,'Classement par moyenne (2)'!$B$5,#REF!))","v":{"$error":"#REF!"}},{"$f":"IF(+SUMIF(#REF!,'Classement par moyenne (2)'!$B$5,#REF!)=0,\"-\",+SUMIF(#REF!,'Classement par moyenne (2)'!$B$5,#REF!))","v":{"$error":"#REF!"}},{"$f":"IF(+SUMIF(#REF!,'Classement par moyenne (2)'!$B$5,#REF!)=0,\"-\",+SUMIF(#REF!,'Classement par moyenne (2)'!$B$5,#REF!))","v":{"$error":"#REF!"}},{"$error":"#REF!"}]
[4,"Despland Camille",{"$f":"IF(+SUMIF(#REF!,'Classement par moyenne (2)'!$B$6,#REF!)=0,\"-\",+SUMIF(#REF!,'Classement par moyenne (2)'!$B$6,#REF!))","v":{"$error":"#REF!"}},{"$f":"IF(+SUMIF(#REF!,'Classement par moyenne (2)'!$B$6,#REF!)=0,\"-\",+SUMIF(#REF!,'Classement par moyenne (2)'!$B$6,#REF!))","v":{"$error":"#REF!"}},{"$f":"IF(+SUMIF(#REF!,'Classement par moyenne (2)'!$B$6,#REF!)=0,\"-\",+SUMIF(#REF!,'Classement par moyenne (2)'!$B$6,#REF!))","v":{"$error":"#REF!"}},{"$f":"IF(+SUMIF(#REF!,'Classement par moyenne (2)'!$B$6,#REF!)=0,\"-\",+SUMIF(#REF!,'Classement par moyenne (2)'!$B$6,#REF!))","v":{"$error":"#REF!"}},{"$f":"IF(+SUMIF(#REF!,'Classement par moyenne (2)'!$B$6,#REF!)=0,\"-\",+SUMIF(#REF!,'Classement par moyenne (2)'!$B$6,#REF!))","v":{"$error":"#REF!"}},{"$f":"IF(+SUMIF(#REF!,'Classement par moyenne (2)'!$B$6,#REF!)=0,\"-\",+SUMIF(#REF!,'Classement par moyenne (2)'!$B$6,#REF!))","v":{"$error":"#REF!"}},{"$f":"IF(+SUMIF(#REF!,'Classement par moyenne (2)'!$B$6,#REF!)=0,\"-\",+SUMIF(#REF!,'Classement par moyenne (2)'!$B$6,#REF!))","v":{"$error":"#REF!"}},{"$error":"#REF!"}]
[5,"Krummenacher André",{"$f":"IF(+SUMIF(#REF!,'Classement par moyenne (2)'!$B$7,#REF!)=0,\"-\",+SUMIF(#REF!,'Classement par moyenne (2)'!$B$7,#REF!))","v":{"$error":"#REF!"}},{"$f":"IF(+SUMIF(#REF!,'Classement par moyenne (2)'!$B$7,#REF!)=0,\"-\",+SUMIF(#REF!,'Classement par moyenne (2)'!$B$7,#REF!))","v":{"$error":"#REF!"}},{"$f":"IF(+SUMIF(#REF!,'Classement par moyenne (2)'!$B$7,#REF!)=0,\"-\",+SUMIF(#REF!,'Classement par moyenne (2)'!$B$7,#REF!))","v":{"$error":"#REF!"}},{"$f":"IF(+SUMIF(#REF!,'Classement par moyenne (2)'!$B$7,#REF!)=0,\"-\",+SUMIF(#REF!,'Classement par moyenne (2)'!$B$7,#REF!))","v":{"$error":"#REF!"}},{"$f":"IF(+SUMIF(#REF!,'Classement par moyenne (2)'!$B$7,#REF!)=0,\"-\",+SUMIF(#REF!,'Classement par moyenne (2)'!$B$7,#REF!))","v":{"$error":"#REF!"}},{"$f":"IF(+SUMIF(#REF!,'Classement par moyenne (2)'!$B$7,#REF!)=0,\"-\",+SUMIF(#REF!,'Classement par moyenne (2)'!$B$7,#REF!))","v":{"$error":"#REF!"}},{"$f":"IF(+SUMIF(#REF!,'Classement par moyenne (2)'!$B$7,#REF!)=0,\"-\",+SUMIF(#REF!,'Classement par moyenne (2)'!$B$7,#REF!))","v":{"$error":"#REF!"}},{"$error":"#REF!"}]
[6,"Cailler Gilbert",{"$f":"IF(+SUMIF(#REF!,'Classement par moyenne (2)'!$B$8,#REF!)=0,\"-\",+SUMIF(#REF!,'Classement par moyenne (2)'!$B$8,#REF!))","v":{"$error":"#REF!"}},{"$f":"IF(+SUMIF(#REF!,'Classement par moyenne (2)'!$B$8,#REF!)=0,\"-\",+SUMIF(#REF!,'Classement par moyenne (2)'!$B$8,#REF!))","v":{"$error":"#REF!"}},{"$f":"IF(+SUMIF(#REF!,'Classement par moyenne (2)'!$B$8,#REF!)=0,\"-\",+SUMIF(#REF!,'Classement par moyenne (2)'!$B$8,#REF!))","v":{"$error":"#REF!"}},{"$f":"IF(+SUMIF(#REF!,'Classement par moyenne (2)'!$B$8,#REF!)=0,\"-\",+SUMIF(#REF!,'Classement par moyenne (2)'!$B$8,#REF!))","v":{"$error":"#REF!"}},{"$f":"IF(+SUMIF(#REF!,'Classement par moyenne (2)'!$B$8,#REF!)=0,\"-\",+SUMIF(#REF!,'Classement par moyenne (2)'!$B$8,#REF!))","v":{"$error":"#REF!"}},{"$f":"IF(+SUMIF(#REF!,'Classement par moyenne (2)'!$B$8,#REF!)=0,\"-\",+SUMIF(#REF!,'Classement par moyenne (2)'!$B$8,#REF!))","v":{"$error":"#REF!"}},{"$f":"IF(+SUMIF(#REF!,'Classement par moyenne (2)'!$B$8,#REF!)=0,\"-\",+SUMIF(#REF!,'Classement par moyenne (2)'!$B$8,#REF!))","v":{"$error":"#REF!"}},{"$error":"#REF!"}]
[7,"Bally Isabelle",{"$f":"IF(+SUMIF(#REF!,'Classement par moyenne (2)'!$B$9,#REF!)=0,\"-\",+SUMIF(#REF!,'Classement par moyenne (2)'!$B$9,#REF!))","v":{"$error":"#REF!"}},{"$f":"IF(+SUMIF(#REF!,'Classement par moyenne (2)'!$B$9,#REF!)=0,\"-\",+SUMIF(#REF!,'Classement par moyenne (2)'!$B$9,#REF!))","v":{"$error":"#REF!"}},{"$f":"IF(+SUMIF(#REF!,'Classement par moyenne (2)'!$B$9,#REF!)=0,\"-\",+SUMIF(#REF!,'Classement par moyenne (2)'!$B$9,#REF!))","v":{"$error":"#REF!"}},{"$f":"IF(+SUMIF(#REF!,'Classement par moyenne (2)'!$B$9,#REF!)=0,\"-\",+SUMIF(#REF!,'Classement par moyenne (2)'!$B$9,#REF!))","v":{"$error":"#REF!"}},{"$f":"IF(+SUMIF(#REF!,'Classement par moyenne (2)'!$B$9,#REF!)=0,\"-\",+SUMIF(#REF!,'Classement par moyenne (2)'!$B$9,#REF!))","v":{"$error":"#REF!"}},{"$f":"IF(+SUMIF(#REF!,'Classement par moyenne (2)'!$B$9,#REF!)=0,\"-\",+SUMIF(#REF!,'Classement par moyenne (2)'!$B$9,#REF!))","v":{"$error":"#REF!"}},{"$f":"IF(+SUMIF(#REF!,'Classement par moyenne (2)'!$B$9,#REF!)=0,\"-\",+SUMIF(#REF!,'Classement par moyenne (2)'!$B$9,#REF!))","v":{"$error":"#REF!"}},{"$error":"#REF!"}]
[8,"Boulaz Gilbert",{"$f":"IF(+SUMIF(#REF!,'Classement par moyenne (2)'!$B$10,#REF!)=0,\"-\",+SUMIF(#REF!,'Classement par moyenne (2)'!$B$10,#REF!))","v":{"$error":"#REF!"}},{"$f":"IF(+SUMIF(#REF!,'Classement par moyenne (2)'!$B$10,#REF!)=0,\"-\",+SUMIF(#REF!,'Classement par moyenne (2)'!$B$10,#REF!))","v":{"$error":"#REF!"}},{"$f":"IF(+SUMIF(#REF!,'Classement par moyenne (2)'!$B$10,#REF!)=0,\"-\",+SUMIF(#REF!,'Classement par moyenne (2)'!$B$10,#REF!))","v":{"$error":"#REF!"}},{"$f":"IF(+SUMIF(#REF!,'Classement par moyenne (2)'!$B$10,#REF!)=0,\"-\",+SUMIF(#REF!,'Classement par moyenne (2)'!$B$10,#REF!))","v":{"$error":"#REF!"}},{"$f":"IF(+SUMIF(#REF!,'Classement par moyenne (2)'!$B$10,#REF!)=0,\"-\",+SUMIF(#REF!,'Classement par moyenne (2)'!$B$10,#REF!))","v":{"$error":"#REF!"}},{"$f":"IF(+SUMIF(#REF!,'Classement par moyenne (2)'!$B$10,#REF!)=0,\"-\",+SUMIF(#REF!,'Classement par moyenne (2)'!$B$10,#REF!))","v":{"$error":"#REF!"}},{"$f":"IF(+SUMIF(#REF!,'Classement par moyenne (2)'!$B$10,#REF!)=0,\"-\",+SUMIF(#REF!,'Classement par moyenne (2)'!$B$10,#REF!))","v":{"$error":"#REF!"}},{"$error":"#REF!"}]
[9,"Kiener Jean-Pierre",{"$f":"IF(+SUMIF(#REF!,'Classement par moyenne (2)'!$B$11,#REF!)=0,\"-\",+SUMIF(#REF!,'Classement par moyenne (2)'!$B$11,#REF!))","v":{"$error":"#REF!"}},{"$f":"IF(+SUMIF(#REF!,'Classement par moyenne (2)'!$B$11,#REF!)=0,\"-\",+SUMIF(#REF!,'Classement par moyenne (2)'!$B$11,#REF!))","v":{"$error":"#REF!"}},{"$f":"IF(+SUMIF(#REF!,'Classement par moyenne (2)'!$B$11,#REF!)=0,\"-\",+SUMIF(#REF!,'Classement par moyenne (2)'!$B$11,#REF!))","v":{"$error":"#REF!"}},{"$f":"IF(+SUMIF(#REF!,'Classement par moyenne (2)'!$B$11,#REF!)=0,\"-\",+SUMIF(#REF!,'Classement par moyenne (2)'!$B$11,#REF!))","v":{"$error":"#REF!"}},{"$f":"IF(+SUMIF(#REF!,'Classement par moyenne (2)'!$B$11,#REF!)=0,\"-\",+SUMIF(#REF!,'Classement par moyenne (2)'!$B$11,#REF!))","v":{"$error":"#REF!"}},{"$f":"IF(+SUMIF(#REF!,'Classement par moyenne (2)'!$B$11,#REF!)=0,\"-\",+SUMIF(#REF!,'Classement par moyenne (2)'!$B$11,#REF!))","v":{"$error":"#REF!"}},{"$f":"IF(+SUMIF(#REF!,'Classement par moyenne (2)'!$B$11,#REF!)=0,\"-\",+SUMIF(#REF!,'Classement par moyenne (2)'!$B$11,#REF!))","v":{"$error":"#REF!"}},{"$error":"#REF!"}]
[10,"Schor Serge",{"$f":"IF(+SUMIF(#REF!,'Classement par moyenne (2)'!$B$12,#REF!)=0,\"-\",+SUMIF(#REF!,'Classement par moyenne (2)'!$B$12,#REF!))","v":{"$error":"#REF!"}},{"$f":"IF(+SUMIF(#REF!,'Classement par moyenne (2)'!$B$12,#REF!)=0,\"-\",+SUMIF(#REF!,'Classement par moyenne (2)'!$B$12,#REF!))","v":{"$error":"#REF!"}},{"$f":"IF(+SUMIF(#REF!,'Classement par moyenne (2)'!$B$12,#REF!)=0,\"-\",+SUMIF(#REF!,'Classement par moyenne (2)'!$B$12,#REF!))","v":{"$error":"#REF!"}},{"$f":"IF(+SUMIF(#REF!,'Classement par moyenne (2)'!$B$12,#REF!)=0,\"-\",+SUMIF(#REF!,'Classement par moyenne (2)'!$B$12,#REF!))","v":{"$error":"#REF!"}},{"$f":"IF(+SUMIF(#REF!,'Classement par moyenne (2)'!$B$12,#REF!)=0,\"-\",+SUMIF(#REF!,'Classement par moyenne (2)'!$B$12,#REF!))","v":{"$error":"#REF!"}},{"$f":"IF(+SUMIF(#REF!,'Classement par moyenne (2)'!$B$12,#REF!)=0,\"-\",+SUMIF(#REF!,'Classement par moyenne (2)'!$B$12,#REF!))","v":{"$error":"#REF!"}},{"$f":"IF(+SUMIF(#REF!,'Classement par moyenne (2)'!$B$12,#REF!)=0,\"-\",+SUMIF(#REF!,'Classement par moyenne (2)'!$B$12,#REF!))","v":{"$error":"#REF!"}},{"$error":"#REF!"}]
[11,"Guglielmetti David",{"$f":"IF(+SUMIF(#REF!,'Classement par moyenne (2)'!$B$13,#REF!)=0,\"-\",+SUMIF(#REF!,'Classement par moyenne (2)'!$B$13,#REF!))","v":{"$error":"#REF!"}},{"$f":"IF(+SUMIF(#REF!,'Classement par moyenne (2)'!$B$13,#REF!)=0,\"-\",+SUMIF(#REF!,'Classement par moyenne (2)'!$B$13,#REF!))","v":{"$error":"#REF!"}},{"$f":"IF(+SUMIF(#REF!,'Classement par moyenne (2)'!$B$13,#REF!)=0,\"-\",+SUMIF(#REF!,'Classement par moyenne (2)'!$B$13,#REF!))","v":{"$error":"#REF!"}},{"$f":"IF(+SUMIF(#REF!,'Classement par moyenne (2)'!$B$13,#REF!)=0,\"-\",+SUMIF(#REF!,'Classement par moyenne (2)'!$B$13,#REF!))","v":{"$error":"#REF!"}},{"$f":"IF(+SUMIF(#REF!,'Classement par moyenne (2)'!$B$13,#REF!)=0,\"-\",+SUMIF(#REF!,'Classement par moyenne (2)'!$B$13,#REF!))","v":{"$error":"#REF!"}},{"$f":"IF(+SUMIF(#REF!,'Classement par moyenne (2)'!$B$13,#REF!)=0,\"-\",+SUMIF(#REF!,'Classement par moyenne (2)'!$B$13,#REF!))","v":{"$error":"#REF!"}},{"$f":"IF(+SUMIF(#REF!,'Classement par moyenne (2)'!$B$13,#REF!)=0,\"-\",+SUMIF(#REF!,'Classement par moyenne (2)'!$B$13,#REF!))","v":{"$error":"#REF!"}},{"$error":"#REF!"}]
[12,"Perret Claude",{"$f":"IF(+SUMIF(#REF!,'Classement par moyenne (2)'!$B$14,#REF!)=0,\"-\",+SUMIF(#REF!,'Classement par moyenne (2)'!$B$14,#REF!))","v":{"$error":"#REF!"}},{"$f":"IF(+SUMIF(#REF!,'Classement par moyenne (2)'!$B$14,#REF!)=0,\"-\",+SUMIF(#REF!,'Classement par moyenne (2)'!$B$14,#REF!))","v":{"$error":"#REF!"}},{"$f":"IF(+SUMIF(#REF!,'Classement par moyenne (2)'!$B$14,#REF!)=0,\"-\",+SUMIF(#REF!,'Classement par moyenne (2)'!$B$14,#REF!))","v":{"$error":"#REF!"}},{"$f":"IF(+SUMIF(#REF!,'Classement par moyenne (2)'!$B$14,#REF!)=0,\"-\",+SUMIF(#REF!,'Classement par moyenne (2)'!$B$14,#REF!))","v":{"$error":"#REF!"}},{"$f":"IF(+SUMIF(#REF!,'Classement par moyenne (2)'!$B$14,#REF!)=0,\"-\",+SUMIF(#REF!,'Classement par moyenne (2)'!$B$14,#REF!))","v":{"$error":"#REF!"}},{"$f":"IF(+SUMIF(#REF!,'Classement par moyenne (2)'!$B$14,#REF!)=0,\"-\",+SUMIF(#REF!,'Classement par moyenne (2)'!$B$14,#REF!))","v":{"$error":"#REF!"}},{"$f":"IF(+SUMIF(#REF!,'Classement par moyenne (2)'!$B$14,#REF!)=0,\"-\",+SUMIF(#REF!,'Classement par moyenne (2)'!$B$14,#REF!))","v":{"$error":"#REF!"}},{"$error":"#REF!"}]
[13,"Tétaz Véronique",{"$f":"IF(+SUMIF(#REF!,'Classement par moyenne (2)'!$B$15,#REF!)=0,\"-\",+SUMIF(#REF!,'Classement par moyenne (2)'!$B$15,#REF!))","v":{"$error":"#REF!"}},{"$f":"IF(+SUMIF(#REF!,'Classement par moyenne (2)'!$B$15,#REF!)=0,\"-\",+SUMIF(#REF!,'Classement par moyenne (2)'!$B$15,#REF!))","v":{"$error":"#REF!"}},{"$f":"IF(+SUMIF(#REF!,'Classement par moyenne (2)'!$B$15,#REF!)=0,\"-\",+SUMIF(#REF!,'Classement par moyenne (2)'!$B$15,#REF!))","v":{"$error":"#REF!"}},{"$f":"IF(+SUMIF(#REF!,'Classement par moyenne (2)'!$B$15,#REF!)=0,\"-\",+SUMIF(#REF!,'Classement par moyenne (2)'!$B$15,#REF!))","v":{"$error":"#REF!"}},{"$f":"IF(+SUMIF(#REF!,'Classement par moyenne (2)'!$B$15,#REF!)=0,\"-\",+SUMIF(#REF!,'Classement par moyenne (2)'!$B$15,#REF!))","v":{"$error":"#REF!"}},{"$f":"IF(+SUMIF(#REF!,'Classement par moyenne (2)'!$B$15,#REF!)=0,\"-\",+SUMIF(#REF!,'Classement par moyenne (2)'!$B$15,#REF!))","v":{"$error":"#REF!"}},{"$f":"IF(+SUMIF(#REF!,'Classement par moyenne (2)'!$B$15,#REF!)=0,\"-\",+SUMIF(#REF!,'Classement par moyenne (2)'!$B$15,#REF!))","v":{"$error":"#REF!"}},{"$error":"#REF!"}]
[14,"Collet André",{"$f":"IF(+SUMIF(#REF!,'Classement par moyenne (2)'!$B$16,#REF!)=0,\"-\",+SUMIF(#REF!,'Classement par moyenne (2)'!$B$16,#REF!))","v":{"$error":"#REF!"}},{"$f":"IF(+SUMIF(#REF!,'Classement par moyenne (2)'!$B$16,#REF!)=0,\"-\",+SUMIF(#REF!,'Classement par moyenne (2)'!$B$16,#REF!))","v":{"$error":"#REF!"}},{"$f":"IF(+SUMIF(#REF!,'Classement par moyenne (2)'!$B$16,#REF!)=0,\"-\",+SUMIF(#REF!,'Classement par moyenne (2)'!$B$16,#REF!))","v":{"$error":"#REF!"}},{"$f":"IF(+SUMIF(#REF!,'Classement par moyenne (2)'!$B$16,#REF!)=0,\"-\",+SUMIF(#REF!,'Classement par moyenne (2)'!$B$16,#REF!))","v":{"$error":"#REF!"}},{"$f":"IF(+SUMIF(#REF!,'Classement par moyenne (2)'!$B$16,#REF!)=0,\"-\",+SUMIF(#REF!,'Classement par moyenne (2)'!$B$16,#REF!))","v":{"$error":"#REF!"}},{"$f":"IF(+SUMIF(#REF!,'Classement par moyenne (2)'!$B$16,#REF!)=0,\"-\",+SUMIF(#REF!,'Classement par moyenne (2)'!$B$16,#REF!))","v":{"$error":"#REF!"}},{"$f":"IF(+SUMIF(#REF!,'Classement par moyenne (2)'!$B$16,#REF!)=0,\"-\",+SUMIF(#REF!,'Classement par moyenne (2)'!$B$16,#REF!))","v":{"$error":"#REF!"}},{"$error":"#REF!"}]
[15,"Perret Nicolas",{"$f":"IF(+SUMIF(#REF!,'Classement par moyenne (2)'!$B$17,#REF!)=0,\"-\",+SUMIF(#REF!,'Classement par moyenne (2)'!$B$17,#REF!))","v":{"$error":"#REF!"}},{"$f":"IF(+SUMIF(#REF!,'Classement par moyenne (2)'!$B$17,#REF!)=0,\"-\",+SUMIF(#REF!,'Classement par moyenne (2)'!$B$17,#REF!))","v":{"$error":"#REF!"}},{"$f":"IF(+SUMIF(#REF!,'Classement par moyenne (2)'!$B$17,#REF!)=0,\"-\",+SUMIF(#REF!,'Classement par moyenne (2)'!$B$17,#REF!))","v":{"$error":"#REF!"}},{"$f":"IF(+SUMIF(#REF!,'Classement par moyenne (2)'!$B$17,#REF!)=0,\"-\",+SUMIF(#REF!,'Classement par moyenne (2)'!$B$17,#REF!))","v":{"$error":"#REF!"}},{"$f":"IF(+SUMIF(#REF!,'Classement par moyenne (2)'!$B$17,#REF!)=0,\"-\",+SUMIF(#REF!,'Classement par moyenne (2)'!$B$17,#REF!))","v":{"$error":"#REF!"}},{"$f":"IF(+SUMIF(#REF!,'Classement par moyenne (2)'!$B$17,#REF!)=0,\"-\",+SUMIF(#REF!,'Classement par moyenne (2)'!$B$17,#REF!))","v":{"$error":"#REF!"}},{"$f":"IF(+SUMIF(#REF!,'Classement par moyenne (2)'!$B$17,#REF!)=0,\"-\",+SUMIF(#REF!,'Classement par moyenne (2)'!$B$17,#REF!))","v":{"$error":"#REF!"}},{"$error":"#REF!"}]
[16,"Perret Christian",{"$f":"IF(+SUMIF(#REF!,'Classement par moyenne (2)'!$B$18,#REF!)=0,\"-\",+SUMIF(#REF!,'Classement par moyenne (2)'!$B$18,#REF!))","v":{"$error":"#REF!"}},{"$f":"IF(+SUMIF(#REF!,'Classement par moyenne (2)'!$B$18,#REF!)=0,\"-\",+SUMIF(#REF!,'Classement par moyenne (2)'!$B$18,#REF!))","v":{"$error":"#REF!"}},{"$f":"IF(+SUMIF(#REF!,'Classement par moyenne (2)'!$B$18,#REF!)=0,\"-\",+SUMIF(#REF!,'Classement par moyenne (2)'!$B$18,#REF!))","v":{"$error":"#REF!"}},{"$f":"IF(+SUMIF(#REF!,'Classement par moyenne (2)'!$B$18,#REF!)=0,\"-\",+SUMIF(#REF!,'Classement par moyenne (2)'!$B$18,#REF!))","v":{"$error":"#REF!"}},{"$f":"IF(+SUMIF(#REF!,'Classement par moyenne (2)'!$B$18,#REF!)=0,\"-\",+SUMIF(#REF!,'Classement par moyenne (2)'!$B$18,#REF!))","v":{"$error":"#REF!"}},{"$f":"IF(+SUMIF(#REF!,'Classement par moyenne (2)'!$B$18,#REF!)=0,\"-\",+SUMIF(#REF!,'Classement par moyenne (2)'!$B$18,#REF!))","v":{"$error":"#REF!"}},{"$f":"IF(+SUMIF(#REF!,'Classement par moyenne (2)'!$B$18,#REF!)=0,\"-\",+SUMIF(#REF!,'Classement par moyenne (2)'!$B$18,#REF!))","v":{"$error":"#REF!"}},{"$error":"#REF!"}]
[17,"Reverchon Fabrice",{"$f":"IF(+SUMIF(#REF!,'Classement par moyenne (2)'!$B$19,#REF!)=0,\"-\",+SUMIF(#REF!,'Classement par moyenne (2)'!$B$19,#REF!))","v":{"$error":"#REF!"}},{"$f":"IF(+SUMIF(#REF!,'Classement par moyenne (2)'!$B$19,#REF!)=0,\"-\",+SUMIF(#REF!,'Classement par moyenne (2)'!$B$19,#REF!))","v":{"$error":"#REF!"}},{"$f":"IF(+SUMIF(#REF!,'Classement par moyenne (2)'!$B$19,#REF!)=0,\"-\",+SUMIF(#REF!,'Classement par moyenne (2)'!$B$19,#REF!))","v":{"$error":"#REF!"}},{"$f":"IF(+SUMIF(#REF!,'Classement par moyenne (2)'!$B$19,#REF!)=0,\"-\",+SUMIF(#REF!,'Classement par moyenne (2)'!$B$19,#REF!))","v":{"$error":"#REF!"}},{"$f":"IF(+SUMIF(#REF!,'Classement par moyenne (2)'!$B$19,#REF!)=0,\"-\",+SUMIF(#REF!,'Classement par moyenne (2)'!$B$19,#REF!))","v":{"$error":"#REF!"}},{"$f":"IF(+SUMIF(#REF!,'Classement par moyenne (2)'!$B$19,#REF!)=0,\"-\",+SUMIF(#REF!,'Classement par moyenne (2)'!$B$19,#REF!))","v":{"$error":"#REF!"}},{"$f":"IF(+SUMIF(#REF!,'Classement par moyenne (2)'!$B$19,#REF!)=0,\"-\",+SUMIF(#REF!,'Classement par moyenne (2)'!$B$19,#REF!))","v":{"$error":"#REF!"}},{"$error":"#REF!"}]
[18,"Reverchon Tony",{"$f":"IF(+SUMIF(#REF!,'Classement par moyenne (2)'!$B$20,#REF!)=0,\"-\",+SUMIF(#REF!,'Classement par moyenne (2)'!$B$20,#REF!))","v":{"$error":"#REF!"}},{"$f":"IF(+SUMIF(#REF!,'Classement par moyenne (2)'!$B$20,#REF!)=0,\"-\",+SUMIF(#REF!,'Classement par moyenne (2)'!$B$20,#REF!))","v":{"$error":"#REF!"}},{"$f":"IF(+SUMIF(#REF!,'Classement par moyenne (2)'!$B$20,#REF!)=0,\"-\",+SUMIF(#REF!,'Classement par moyenne (2)'!$B$20,#REF!))","v":{"$error":"#REF!"}},{"$f":"IF(+SUMIF(#REF!,'Classement par moyenne (2)'!$B$20,#REF!)=0,\"-\",+SUMIF(#REF!,'Classement par moyenne (2)'!$B$20,#REF!))","v":{"$error":"#REF!"}},{"$f":"IF(+SUMIF(#REF!,'Classement par moyenne (2)'!$B$20,#REF!)=0,\"-\",+SUMIF(#REF!,'Classement par moyenne (2)'!$B$20,#REF!))","v":{"$error":"#REF!"}},{"$f":"IF(+SUMIF(#REF!,'Classement par moyenne (2)'!$B$20,#REF!)=0,\"-\",+SUMIF(#REF!,'Classement par moyenne (2)'!$B$20,#REF!))","v":{"$error":"#REF!"}},{"$f":"IF(+SUMIF(#REF!,'Classement par moyenne (2)'!$B$20,#REF!)=0,\"-\",+SUMIF(#REF!,'Classement par moyenne (2)'!$B$20,#REF!))","v":{"$error":"#REF!"}},{"$error":"#REF!"}]
[19,"Roch Jean-Marc",{"$f":"IF(+SUMIF(#REF!,'Classement par moyenne (2)'!$B$21,#REF!)=0,\"-\",+SUMIF(#REF!,'Classement par moyenne (2)'!$B$21,#REF!))","v":{"$error":"#REF!"}},{"$f":"IF(+SUMIF(#REF!,'Classement par moyenne (2)'!$B$21,#REF!)=0,\"-\",+SUMIF(#REF!,'Classement par moyenne (2)'!$B$21,#REF!))","v":{"$error":"#REF!"}},{"$f":"IF(+SUMIF(#REF!,'Classement par moyenne (2)'!$B$21,#REF!)=0,\"-\",+SUMIF(#REF!,'Classement par moyenne (2)'!$B$21,#REF!))","v":{"$error":"#REF!"}},{"$f":"IF(+SUMIF(#REF!,'Classement par moyenne (2)'!$B$21,#REF!)=0,\"-\",+SUMIF(#REF!,'Classement par moyenne (2)'!$B$21,#REF!))","v":{"$error":"#REF!"}},{"$f":"IF(+SUMIF(#REF!,'Classement par moyenne (2)'!$B$21,#REF!)=0,\"-\",+SUMIF(#REF!,'Classement par moyenne (2)'!$B$21,#REF!))","v":{"$error":"#REF!"}},{"$f":"IF(+SUMIF(#REF!,'Classement par moyenne (2)'!$B$21,#REF!)=0,\"-\",+SUMIF(#REF!,'Classement par moyenne (2)'!$B$21,#REF!))","v":{"$error":"#REF!"}},{"$f":"IF(+SUMIF(#REF!,'Classement par moyenne (2)'!$B$21,#REF!)=0,\"-\",+SUMIF(#REF!,'Classement par moyenne (2)'!$B$21,#REF!))","v":{"$error":"#REF!"}},{"$error":"#REF!"}]
[20,"Furer Yves",{"$f":"IF(+SUMIF(#REF!,'Classement par moyenne (2)'!$B$22,#REF!)=0,\"-\",+SUMIF(#REF!,'Classement par moyenne (2)'!$B$22,#REF!))","v":{"$error":"#REF!"}},{"$f":"IF(+SUMIF(#REF!,'Classement par moyenne (2)'!$B$22,#REF!)=0,\"-\",+SUMIF(#REF!,'Classement par moyenne (2)'!$B$22,#REF!))","v":{"$error":"#REF!"}},{"$f":"IF(+SUMIF(#REF!,'Classement par moyenne (2)'!$B$22,#REF!)=0,\"-\",+SUMIF(#REF!,'Classement par moyenne (2)'!$B$22,#REF!))","v":{"$error":"#REF!"}},{"$f":"IF(+SUMIF(#REF!,'Classement par moyenne (2)'!$B$22,#REF!)=0,\"-\",+SUMIF(#REF!,'Classement par moyenne (2)'!$B$22,#REF!))","v":{"$error":"#REF!"}},{"$f":"IF(+SUMIF(#REF!,'Classement par moyenne (2)'!$B$22,#REF!)=0,\"-\",+SUMIF(#REF!,'Classement par moyenne (2)'!$B$22,#REF!))","v":{"$error":"#REF!"}},{"$f":"IF(+SUMIF(#REF!,'Classement par moyenne (2)'!$B$22,#REF!)=0,\"-\",+SUMIF(#REF!,'Classement par moyenne (2)'!$B$22,#REF!))","v":{"$error":"#REF!"}},{"$f":"IF(+SUMIF(#REF!,'Classement par moyenne (2)'!$B$22,#REF!)=0,\"-\",+SUMIF(#REF!,'Classement par moyenne (2)'!$B$22,#REF!))","v":{"$error":"#REF!"}},{"$error":"#REF!"}]
[21,"Baechler Martial",{"$f":"IF(+SUMIF(#REF!,'Classement par moyenne (2)'!$B$23,#REF!)=0,\"-\",+SUMIF(#REF!,'Classement par moyenne (2)'!$B$23,#REF!))","v":{"$error":"#REF!"}},{"$f":"IF(+SUMIF(#REF!,'Classement par moyenne (2)'!$B$23,#REF!)=0,\"-\",+SUMIF(#REF!,'Classement par moyenne (2)'!$B$23,#REF!))","v":{"$error":"#REF!"}},{"$f":"IF(+SUMIF(#REF!,'Classement par moyenne (2)'!$B$23,#REF!)=0,\"-\",+SUMIF(#REF!,'Classement par moyenne (2)'!$B$23,#REF!))","v":{"$error":"#REF!"}},{"$f":"IF(+SUMIF(#REF!,'Classement par moyenne (2)'!$B$23,#REF!)=0,\"-\",+SUMIF(#REF!,'Classement par moyenne (2)'!$B$23,#REF!))","v":{"$error":"#REF!"}},{"$f":"IF(+SUMIF(#REF!,'Classement par moyenne (2)'!$B$23,#REF!)=0,\"-\",+SUMIF(#REF!,'Classement par moyenne (2)'!$B$23,#REF!))","v":{"$error":"#REF!"}},{"$f":"IF(+SUMIF(#REF!,'Classement par moyenne (2)'!$B$23,#REF!)=0,\"-\",+SUMIF(#REF!,'Classement par moyenne (2)'!$B$23,#REF!))","v":{"$error":"#REF!"}},{"$f":"IF(+SUMIF(#REF!,'Classement par moyenne (2)'!$B$23,#REF!)=0,\"-\",+SUMIF(#REF!,'Classement par moyenne (2)'!$B$23,#REF!))","v":{"$error":"#REF!"}},{"$error":"#REF!"}]
[22,"Secco Lucas",{"$f":"IF(+SUMIF(#REF!,'Classement par moyenne (2)'!$B$24,#REF!)=0,\"-\",+SUMIF(#REF!,'Classement par moyenne (2)'!$B$24,#REF!))","v":{"$error":"#REF!"}},{"$f":"IF(+SUMIF(#REF!,'Classement par moyenne (2)'!$B$24,#REF!)=0,\"-\",+SUMIF(#REF!,'Classement par moyenne (2)'!$B$24,#REF!))","v":{"$error":"#REF!"}},{"$f":"IF(+SUMIF(#REF!,'Classement par moyenne (2)'!$B$24,#REF!)=0,\"-\",+SUMIF(#REF!,'Classement par moyenne (2)'!$B$24,#REF!))","v":{"$error":"#REF!"}},{"$f":"IF(+SUMIF(#REF!,'Classement par moyenne (2)'!$B$24,#REF!)=0,\"-\",+SUMIF(#REF!,'Classement par moyenne (2)'!$B$24,#REF!))","v":{"$error":"#REF!"}},{"$f":"IF(+SUMIF(#REF!,'Classement par moyenne (2)'!$B$24,#REF!)=0,\"-\",+SUMIF(#REF!,'Classement par moyenne (2)'!$B$24,#REF!))","v":{"$error":"#REF!"}},{"$f":"IF(+SUMIF(#REF!,'Classement par moyenne (2)'!$B$24,#REF!)=0,\"-\",+SUMIF(#REF!,'Classement par moyenne (2)'!$B$24,#REF!))","v":{"$error":"#REF!"}},{"$f":"IF(+SUMIF(#REF!,'Classement par moyenne (2)'!$B$24,#REF!)=0,\"-\",+SUMIF(#REF!,'Classement par moyenne (2)'!$B$24,#REF!))","v":{"$error":"#REF!"}},{"$error":"#REF!"}]
[23,"Roch Benjamin",{"$f":"IF(+SUMIF(#REF!,'Classement par moyenne (2)'!$B$25,#REF!)=0,\"-\",+SUMIF(#REF!,'Classement par moyenne (2)'!$B$25,#REF!))","v":{"$error":"#REF!"}},{"$f":"IF(+SUMIF(#REF!,'Classement par moyenne (2)'!$B$25,#REF!)=0,\"-\",+SUMIF(#REF!,'Classement par moyenne (2)'!$B$25,#REF!))","v":{"$error":"#REF!"}},{"$f":"IF(+SUMIF(#REF!,'Classement par moyenne (2)'!$B$25,#REF!)=0,\"-\",+SUMIF(#REF!,'Classement par moyenne (2)'!$B$25,#REF!))","v":{"$error":"#REF!"}},{"$f":"IF(+SUMIF(#REF!,'Classement par moyenne (2)'!$B$25,#REF!)=0,\"-\",+SUMIF(#REF!,'Classement par moyenne (2)'!$B$25,#REF!))","v":{"$error":"#REF!"}},{"$f":"IF(+SUMIF(#REF!,'Classement par moyenne (2)'!$B$25,#REF!)=0,\"-\",+SUMIF(#REF!,'Classement par moyenne (2)'!$B$25,#REF!))","v":{"$error":"#REF!"}},{"$f":"IF(+SUMIF(#REF!,'Classement par moyenne (2)'!$B$25,#REF!)=0,\"-\",+SUMIF(#REF!,'Classement par moyenne (2)'!$B$25,#REF!))","v":{"$error":"#REF!"}},{"$f":"IF(+SUMIF(#REF!,'Classement par moyenne (2)'!$B$25,#REF!)=0,\"-\",+SUMIF(#REF!,'Classement par moyenne (2)'!$B$25,#REF!))","v":{"$error":"#REF!"}},{"$error":"#REF!"}]